lending/lending_fUSD_20260102
["ID","MTS","AMOUNT","RATE_DAILY","PERIOD"]
[400313142,1767353440821,-112053.1779018,0.00015361,2]
[400313143,1767353440830,-22158.3106761,0.00015361,2]
[400313144,1767353440840,-194953.66547437,0.00015361,2]
[400313161,1767353443088,-493870.84186173,0.00015361,2]
[400313162,1767353443098,-151.0,0.00015361,2]
[400313163,1767353443118,-151.0,0.00015361,2]
[400313164,1767353443128,-534.83,0.0001537,2]
[400313165,1767353443137,-767.31,0.00015383,2]
[400313166,1767353443147,-666.0,0.00015391,2]
[400313167,1767353443156,-1000.0,0.000154,2]
[400313168,1767353443166,-2873.0,0.00015403,2]
[400313169,1767353443175,-1551.41896717,0.00015406,2]
[400313170,1767353443185,-4503.87756912,0.00015419,2]
[400313171,1767353443195,-234.51752133,0.00015454,2]
[400313172,1767353443204,-1000.0,0.00015459,2]
[400313173,1767353443213,-1000.0,0.00015459,2]
[400313174,1767353443222,-1000.0,0.00015459,2]
[400313175,1767353443232,-1000.0,0.00015459,2]
[400313176,1767353443242,-1000.0,0.00015459,2]
[400313177,1767353443251,-1000.0,0.00015459,2]
[400313178,1767353443261,-1000.0,0.00015459,2]
[400313179,1767353443271,-1000.0,0.00015459,2]
[400313180,1767353443280,-1000.0,0.00015459,2]
[400313181,1767353443290,-1000.0,0.00015459,2]
[400313182,1767353443299,-1000.0,0.00015459,2]
[400313183,1767353443310,-1000.0,0.00015459,2]
[400313184,1767353443319,-1000.0,0.00015459,2]
[400313185,1767353443328,-1000.0,0.00015459,2]
[400313186,1767353443339,-1000.0,0.00015459,2]
[400313187,1767353443351,-1000.0,0.00015459,2]
[400313188,1767353443360,-1000.0,0.00015459,2]
[400313189,1767353443369,-1000.0,0.00015459,2]
[400313190,1767353443379,-1000.0,0.00015459,2]
[400313191,1767353443390,-1000.0,0.00015459,2]
[400313192,1767353443400,-1000.0,0.00015459,2]
[400313193,1767353443410,-309.51178327,0.00015459,2]
[400313194,1767353443419,-163.90439,0.00015459,2]
[400313195,1767353443429,-163.90439,0.00015459,2]
[400313196,1767353443439,-163.90439,0.00015459,2]
[400313197,1767353443448,-163.9044,0.00015459,2]
[400313198,1767353443457,-163.90439,0.00015459,2]
[400313199,1767353443466,-163.90439,0.00015459,2]
[400313200,1767353443475,-163.90439,0.00015459,2]
[400313201,1767353443485,-6326.67369967,0.0001548,2]
[400313202,1767353443494,-151.0,0.00015515,2]
[400313203,1767353443503,-151.0,0.00015515,2]
[400313204,1767353443512,-151.0,0.00015515,2]
[400313205,1767353443522,-151.0,0.00015515,2]
[400313206,1767353443532,-200.0,0.00015523,2]
[400313207,1767353443541,-200.0,0.00015523,2]
[400313208,1767353443551,-2077.0,0.00015562,2]
[400313209,1767353443561,-1000.0,0.000156,2]
[400313210,1767353443570,-168.0,0.00015617,2]
[400313211,1767353443579,-168.0,0.00015626,2]
[400313212,1767353443590,-168.0,0.00015626,2]
[400313213,1767353443599,-4503.87756912,0.00015631,2]
[400313214,1767353443609,-802.88188,0.00015631,2]
[400313215,1767353443618,-802.88188,0.00015631,2]
[400313216,1767353443628,-802.88188,0.00015631,2]
[400313217,1767353443637,-802.88188,0.00015631,2]
[400313218,1767353443647,-173.904248,0.00015631,2]
[400313219,1767353443660,-173.904248,0.00015631,2]
[400313220,1767353443671,-173.904248,0.00015631,2]
[400313221,1767353443680,-173.904248,0.00015631,2]
[400313222,1767353443689,-578.825434,0.00015631,2]
[400313223,1767353443698,-578.825434,0.00015631,2]
[400313224,1767353443708,-578.825434,0.00015631,2]
[400313225,1767353443717,-578.825434,0.00015631,2]
[400313226,1767353443727,-767.31,0.00015657,2]
[400313227,1767353443736,-500.0,0.00015658,2]
[400313228,1767353443745,-500.0,0.00015658,2]
[400313229,1767353443755,-151.0,0.00015673,2]
[400313230,1767353443764,-151.0,0.00015673,2]
[400313231,1767353443774,-151.0,0.00015677,2]
[400313232,1767353443783,-151.0,0.00015677,2]
[400313233,1767353443793,-814.0,0.00015677,2]
[400313234,1767353443803,-814.0,0.0001568,2]
[400313235,1767353443812,-814.0,0.00015696,2]
[400313236,1767353443822,-1000.0,0.000157,2]
[400313237,1767353443831,-1660.3,0.00015732,2]
[400313238,1767353443841,-814.0,0.00015734,2]
[400313239,1767353443851,-255.0,0.00015739,2]
[400313240,1767353443860,-423.70628489,0.00015758,2]
[400313241,1767353443870,-2077.0,0.00015762,2]
[400313242,1767353443879,-1000.0,0.000158,2]
[400313243,1767353443890,-814.0,0.00015801,2]
[400313244,1767353443899,-151.0,0.00015828,2]
[400313245,1767353443909,-151.0,0.00015828,2]
[400313246,1767353443919,-153.474727,0.00015828,2]
[400313247,1767353443928,-151.0,0.00015828,2]
[400313248,1767353443937,-151.0,0.00015828,2]
[400313249,1767353443946,-151.0,0.00015828,2]
[400313250,1767353443956,-151.0,0.00015828,2]
[400313251,1767353443966,-4384.37723122,0.00015842,2]
[400313252,1767353444006,-119.5003379,0.00015842,2]
[400313253,1767353444015,-814.0,0.00015865,2]
[400313254,1767353444025,-151.0,0.00015865,2]
[400313255,1767353444034,-814.0,0.00015871,2]
[400313256,1767353444047,-150.9119,0.000159,2]
[400313257,1767353444058,-814.0,0.00015917,2]
[400313258,1767353444067,-239.73,0.00015919,2]
[400313259,1767353444077,-814.0,0.0001593,2]
[400313260,1767353444086,-767.31,0.00015931,2]
[400313261,1767353444095,-455.82,0.00015953,2]
[400313262,1767353444105,-1265.0,0.00015953,2]
[400313263,1767353444115,-151.0,0.00015953,2]
[400313264,1767353444124,-151.0,0.00015953,2]
[400313265,1767353444133,-151.0,0.00015953,2]
[400313266,1767353444143,-151.0,0.00015953,2]
[400313267,1767353444154,-151.0,0.00015953,2]
[400313268,1767353444163,-153.016044,0.00015953,2]
[400313269,1767353444173,-151.0,0.00015953,2]
[400313270,1767353444182,-151.0,0.00015953,2]
[400313271,1767353444192,-1199.0,0.00015953,2]
[400313272,1767353444201,-151.0,0.00015953,2]
[400313273,1767353444211,-151.0,0.00015953,2]
[400313274,1767353444220,-151.0,0.00015953,2]
[400313275,1767353444230,-920.823,0.00015953,2]
[400313276,1767353444243,-151.0,0.00015953,2]
[400313277,1767353444252,-151.0,0.00015953,2]
[400313278,1767353444262,-151.0,0.00015953,2]
[400313279,1767353444271,-151.0,0.00015953,2]
[400313280,1767353444280,-380.599865,0.00015953,2]
[400313281,1767353444290,-380.599865,0.00015953,2]
[400313282,1767353444299,-380.599865,0.00015953,2]
[400313283,1767353444309,-380.599865,0.00015953,2]
[400313284,1767353444319,-626.889,0.00015953,2]
[400313285,1767353444328,-4813.0,0.00015953,2]
[400313286,1767353444341,-3473.854,0.00015953,2]
[400313287,1767353444351,-2433.0,0.00015953,2]
[400313288,1767353444361,-814.0,0.00015967,2]
[400313289,1767353444370,-814.0,0.00015995,2]
[400313290,1767353444381,-500.0,0.00016,2]
[400313291,1767353444391,-500.0,0.00016,2]
[400313292,1767353444400,-503.61,0.00016,2]
[400313293,1767353444409,-455.7,0.00016,2]
[400313294,1767353444421,-11802.09272208,0.00016,2]
[400313295,1767353444430,-13276.57741757,0.00016,4]
[400313296,1767353444439,-814.0,0.00016032,2]
[400313297,1767353444452,-814.0,0.00016036,2]
[400313298,1767353444461,-814.0,0.00016051,2]
[400313299,1767353444471,-4503.87756912,0.00016054,2]
[400313300,1767353444480,-802.88188,0.00016054,2]
[400313301,1767353444490,-802.88188,0.00016054,2]
[400313302,1767353444499,-802.88188,0.00016054,2]
[400313303,1767353444508,-802.88188,0.00016054,2]
[400313304,1767353444518,-173.904248,0.00016054,2]
[400313305,1767353444527,-173.904248,0.00016054,2]
[400313306,1767353444537,-173.904248,0.00016054,2]
[400313307,1767353444547,-173.904248,0.00016054,2]
[400313308,1767353444557,-578.825434,0.00016054,2]
[400313309,1767353444567,-578.825434,0.00016054,2]
[400313310,1767353444578,-578.825434,0.00016054,2]
[400313311,1767353444587,-578.825434,0.00016054,2]
[400313312,1767353444597,-151.0,0.00016054,2]
[400313313,1767353444606,-151.0,0.00016054,2]
[400313314,1767353444617,-200.0,0.00016071,2]
[400313315,1767353444627,-200.0,0.00016071,2]
[400313316,1767353444639,-460.09140406,0.00016113,2]
[400313317,1767353444651,-39.90859594,0.00016113,2]
[400313318,1767353444661,-150.0,0.00016114,2]
[400313319,1767353444671,-150.0,0.00016114,2]
[400313320,1767353444680,-150.0,0.00016114,2]
[400313321,1767353444690,-150.191,0.00016114,2]
[400313322,1767353444699,-150.338,0.00016114,2]
[400313323,1767353444708,-150.0,0.00016114,2]
[400313324,1767353444718,-150.186,0.00016114,2]
[400313325,1767353444728,-163.66,0.00016114,2]
[400313326,1767353444739,-250.0,0.00016114,2]
[400313327,1767353444748,-211.776,0.00016114,2]
[400313328,1767353444758,-250.0,0.00016114,2]
[400313329,1767353444768,-227.401,0.00016114,2]
[400313330,1767353444778,-167.0,0.00016114,2]
[400313331,1767353444787,-814.0,0.00016157,2]
[400313332,1767353444797,-814.0,0.00016182,2]
[400313333,1767353444806,-150.0,0.00016192,2]
[400313334,1767353444815,-150.0,0.00016192,2]
[400313335,1767353444825,-150.0,0.00016192,2]
[400313336,1767353444834,-5467.98950114,0.000162,5]
[400313337,1767353444846,-814.0,0.00016204,2]
[400313338,1767353444855,-767.31,0.00016205,2]
[400313339,1767353444864,-814.0,0.00016207,2]
[400313340,1767353444873,-814.0,0.00016229,2]
[400313341,1767353444883,-587.0,0.00016233,2]
[400313342,1767353444892,-587.0,0.00016233,2]
[400313343,1767353444901,-334.5472959,0.00016257,2]
[400313344,1767353444911,-151.0,0.00016261,2]
[400313345,1767353444920,-151.0,0.00016261,2]
[400313346,1767353444929,-151.0,0.00016261,2]
[400313347,1767353444939,-151.0,0.00016261,2]
[400313348,1767353444948,-151.0,0.00016261,2]
[400313349,1767353444957,-1223.0,0.00016265,2]
[400313350,1767353444967,-4503.87756912,0.00016265,2]
[400313351,1767353444976,-1009.0,0.000163,2]
[400313352,1767353444986,-1000.0,0.00016326,2]
[400313353,1767353444995,-169.33,0.00016337,2]
[400313354,1767353445005,-339.67863184,0.00016338,2]
[400313355,1767353445015,-228.0,0.000164,2]
[400313356,1767353445024,-319.0,0.000164,2]
[400313357,1767353445034,-182.0,0.000164,2]
[400313358,1767353445043,-185.19783089,0.000164,2]
[400313359,1767353445052,-151.86245973,0.0001642,2]
[400313360,1767353445062,-496.08576364,0.00016438,2]
[400313396,1767353445634,-187.61401707,0.00015919,2]
[400313397,1767353445644,-3.91423636,0.00016438,2]
[400313399,1767353445653,-504.75468002,0.00016438,2]
[400313400,1767353445664,-151.0,0.00016438,2]
[400313402,1767353445673,-151.0,0.00016438,2]
[400313404,1767353445683,-151.0,0.00016438,2]
[400313405,1767353445692,-151.0,0.00016438,2]
[400313407,1767353445702,-151.0,0.00016438,2]
[400313408,1767353445711,-151.0,0.00016438,2]
[400313410,1767353445720,-151.0,0.00016438,2]
[400313411,1767353445729,-151.0,0.00016438,2]
[400313413,1767353445738,-500.0,0.00016438,2]
[400313415,1767353445748,-500.0,0.00016438,2]
[400313416,1767353445757,-141.11706655,0.00016438,2]
[400313418,1767353445769,-358.88293345,0.00016438,2]
[400313420,1767353445779,-500.0,0.00016438,2]
[400313422,1767353445788,-500.0,0.00016438,2]
[400313436,1767353445993,-149.36039083,0.00016438,2]
[400313438,1767353446054,-350.63960917,0.00016438,2]
[400313440,1767353446063,-500.0,0.00016438,2]
[400313442,1767353446073,-500.0,0.00016438,2]
[400313444,1767353446082,-500.0,0.00016438,2]
[400313446,1767353446091,-447.00135462,0.00016438,2]
[400313448,1767353446108,-52.99864538,0.00016438,2]
[400313451,1767353446119,-500.0,0.00016438,2]
[400313452,1767353446128,-500.0,0.00016438,2]
[400313454,1767353446138,-500.0,0.00016438,2]
[400313456,1767353446148,-500.0,0.00016438,2]
[400313458,1767353446157,-500.0,0.00016438,2]
[400313459,1767353446166,-266.69817297,0.00016438,2]
[400313462,1767354631495,-218.9,0.0001175,2]
[400313463,1767354631506,-255.49773604,0.00012044,2]
[400313464,1767354631515,-300.0,0.00012337,2]
[400313465,1767354631523,-300.0,0.00012925,2]
[400313466,1767354631533,-19.38749388,0.00012925,2]
[400313467,1767354631544,-230.61250612,0.00012925,2]
[400313468,1767354631554,-67.25511902,0.00012925,2]
[400313469,1767354631567,-358.61010343,0.00012925,2]
[400313470,1767354631576,-300.0,0.00013464,2]
[400313471,1767354631585,-241.3,0.00013464,2]
[400313472,1767354631595,-150.0,0.00014035,2]
[400313473,1767354631604,-1500.0,0.00014288,2]
[400313474,1767354631615,-166.66,0.00014322,2]
[400313475,1767354631624,-1021.8,0.00014391,2]
[400313476,1767354631633,-1200.0,0.00014431,2]
[400313477,1767354631643,-1000.0,0.00014432,2]
[400313478,1767354631653,-300.0,0.00014598,2]
[400313479,1767354631666,-300.0,0.00014599,2]
[400313480,1767354631675,-300.0,0.00014599,2]
[400313481,1767354631684,-300.0,0.00014599,2]
[400313482,1767354631693,-1705.6313808,0.000146,2]
[400313494,1767354632130,-4293.71972312,0.000146,2]
[400313495,1767354632140,-166.66,0.00014624,2]
[400313496,1767354632149,-10109.28378649,0.00014625,2]
[400313497,1767354632160,-9805.73974299,0.00014625,2]
[400313498,1767354632171,-877.5,0.00014625,2]
[400313499,1767354632188,-2726.7552132,0.00014625,2]
[400313500,1767354632199,-13123.87208447,0.00014625,2]
[400313501,1767354632211,-1091.80232096,0.00014625,2]
[400313502,1767354632225,-1008.74102828,0.00014625,2]
[400313503,1767354632236,-7741.85451332,0.00014625,2]
[400313504,1767354632248,-13029.35141029,0.00014625,2]
[400313505,1767354632257,-150.0,0.00014748,2]
[400313506,1767354632268,-186.16778178,0.00014749,2]
[400313507,1767354632279,-200.0,0.00014779,2]
[400313508,1767354632289,-200.0,0.00014779,2]
[400313509,1767354632298,-151.0,0.00014779,2]
[400313510,1767354632308,-151.0,0.00014779,2]
[400313511,1767354632317,-151.0,0.00014779,2]
[400313512,1767354632327,-151.0,0.00014779,2]
[400313513,1767354632336,-151.0,0.00014779,2]
[400313514,1767354632347,-151.0,0.00014779,2]
[400313515,1767354632357,-151.0,0.00014779,2]
[400313516,1767354632367,-151.0,0.00014779,2]
[400313517,1767354632376,-151.0,0.00014779,2]
[400313518,1767354632385,-151.0,0.00014779,2]
[400313519,1767354632395,-200.0,0.00014779,2]
[400313520,1767354632404,-151.0,0.00014779,2]
[400313521,1767354632414,-500.0,0.00014787,2]
[400313522,1767354632423,-497.77022115,0.00014787,2]
[400313523,1767354632432,-686.876,0.00014787,2]
[400313524,1767354632442,-623.0,0.00014849,2]
[400313525,1767354632451,-322.6107,0.00014907,2]
[400313526,1767354632463,-250.0,0.00014907,2]
[400313527,1767354632472,-250.0,0.00014907,2]
[400313528,1767354632482,-250.0,0.00014907,2]
[400313529,1767354632491,-250.0,0.00014907,2]
[400313530,1767354632501,-250.0,0.00014907,2]
[400313531,1767354632510,-250.0,0.00014907,2]
[400313532,1767354632520,-250.0,0.00014907,2]
[400313533,1767354632529,-250.0,0.00014907,2]
[400313534,1767354632538,-250.0,0.00014907,2]
[400313535,1767354632548,-250.0,0.00014907,2]
[400313536,1767354632558,-250.0,0.00014907,2]
[400313537,1767354632567,-166.66,0.00014925,2]
[400313538,1767354632577,-500.0,0.00015036,2]
[400313539,1767354632587,-220.50523453,0.00015036,2]
[400313540,1767354632599,-279.49476547,0.00015036,2]
[400313541,1767354632608,-500.0,0.00015036,2]
[400313542,1767354632618,-192.43327901,0.00015036,2]
[400313543,1767354632628,-166.66,0.00015227,2]
[400313544,1767354632637,-2657.44,0.0001531,2]
[400313545,1767354632646,-150.99,0.0001531,2]
[400313546,1767354632657,-512.46,0.0001531,2]
[400313547,1767354632669,-335.47,0.0001531,2]
[400313548,1767354632678,-1073.56,0.0001531,2]
[400313549,1767354632687,-2115.24605032,0.0001531,2]
[400313550,1767354632699,-764.48554386,0.0001531,2]
[400313551,1767354632711,-413.60445614,0.0001531,2]
[400313552,1767354632726,-626.31575954,0.0001531,2]
[400313553,1767354632738,-822.10562034,0.0001531,2]
[400313554,1767354632749,-716.94477083,0.0001531,2]
[400313555,1767354632761,-2532.10146064,0.0001531,2]
[400313556,1767354632771,-2009.18633833,0.0001531,2]
[400313557,1767354632781,-299.99,0.0001531,2]
[400313558,1767354632790,-2134.33767593,0.0001531,2]
[400313559,1767354632800,-832.43232407,0.0001531,2]
[400313560,1767354632810,-4111.57,0.0001531,2]
[400313561,1767354632820,-382.67767593,0.0001531,2]
[400313562,1767354637597,-731.46652924,0.0001531,2]
[400313563,1767354637611,-1784.33579483,0.0001531,2]
[400313564,1767354637621,-1463.97,0.0001531,2]
[400313565,1767354637630,-150.99,0.0001531,2]
[400313566,1767354637643,-999.99,0.0001531,2]
[400313567,1767354637652,-466.13310643,0.0001531,2]
[400313568,1767354637668,-7724.14768103,0.0001531,2]
[400313569,1767354637678,-1371.46605737,0.0001531,2]
[400313570,1767354637690,-2188.98332652,0.0001531,2]
[400313571,1767354637723,-6835.89156807,0.0001531,2]
[400313572,1767354637736,-304.62,0.0001531,2]
[400313573,1767354637750,-652.87826058,0.0001531,2]
[400313574,1767354637759,-200.0,0.00015327,2]
[400313575,1767354637768,-200.0,0.00015327,2]
[400313576,1767354637777,-166.66,0.00015529,2]
[400313577,1767354637786,-3978.55699773,0.00015586,2]
[400313582,1767354639583,-1273.216,0.00015586,2]
[400313583,1767354639594,-854.83700227,0.00015586,2]
[400313584,1767354639603,-200.0,0.00015629,2]
[400313585,1767354639612,-1103.63820843,0.00015663,2]
[400313586,1767354639745,-1193.36179157,0.00015663,2]
[400313587,1767354639755,-158.05,0.0001572,2]
[400313588,1767354639764,-166.66,0.0001583,2]
[400313589,1767354639773,-255.0,0.00015869,2]
[400313590,1767354639782,-200.0,0.00015875,2]
[400313591,1767354639791,-200.0,0.00015875,2]
[400313592,1767354639801,-1351.16327079,0.000159,2]
[400313593,1767354639810,-167.87,0.00015918,2]
[400313594,1767354639819,-179.52751018,0.0001596,2]
[400313595,1767354639828,-420.0,0.00015984,2]
[400313596,1767354639837,-208.36742746,0.00015984,2]
[400313597,1767354639851,-211.63257254,0.00015984,2]
[400313598,1767354639860,-176.46388284,0.00015984,2]
[400313600,1767354639958,-133.53611716,0.00015984,2]
[400313601,1767354639969,-336.13713403,0.00015998,2]
[400313602,1767354639978,-222.86674835,0.00015999,2]
[400313603,1767354639989,-1223.01722945,0.00015999,2]
[400313637,1767354644948,-500.0,0.00014906,2]
[400313638,1767354644959,-256.87984913,0.00014906,2]
[400313639,1767354644969,-175.68848696,0.00015529,2]
[400313640,1767354644979,-2566.32029788,0.00015999,2]
[400313641,1767354645030,-14.55295054,0.00015999,2]
[400313642,1767354645041,-1518.01328894,0.00015999,2]
[400313712,1767354664328,367.12,0.0003013,120]
[400313713,1767355747124,-601.83,0.00013699,2]
[400313719,1767355831620,-241.8421,0.00014188,2]
[400313720,1767355831630,-682.19498931,0.00014287,2]
[400313721,1767355831672,-4448.89501069,0.00014287,2]
[400313722,1767355831682,-200.0,0.00014335,2]
[400313723,1767355831691,-2272.95,0.00014443,2]
[400313724,1767355831700,-175.68848695,0.00014449,2]
[400313725,1767355831710,-150.0,0.00014548,2]
[400313726,1767355831719,-300.0,0.00014548,2]
[400313727,1767355831729,-532.7013299,0.00014549,2]
[400313728,1767355831766,-698.15516949,0.00014549,2]
[400313729,1767355831798,-462.91615925,0.00014549,2]
[400313730,1767355831839,-806.22734136,0.00014549,2]
[400313731,1767355831848,-12335.42958071,0.00014549,2]
[400313739,1767355837673,-3137.267809,0.00014549,2]
[400313740,1767355837687,-1811.16,0.00014549,2]
[400313741,1767355837740,-2212.97523654,0.00014549,2]
[400313742,1767355837782,-761.7,0.00014549,2]
[400313743,1767355837793,-3234.24970126,0.00014549,2]
[400313744,1767355837895,-267.97702398,0.00014549,2]
[400313751,1767355839897,-475.70768933,0.00014549,2]
[400313759,1767355843316,-534.74828065,0.00014549,2]
[400313760,1767355843329,-3439.16975584,0.00014549,2]
[400313836,1767355860892,-114856.36862269,0.00014549,2]
[400313837,1767355860902,-1216.04694372,0.00014561,2]
[400313838,1767355860911,-179.52751018,0.00014561,2]
[400313839,1767355860921,-4119.72,0.00014624,2]
[400313840,1767355860930,-200.0,0.0001464,2]
[400313841,1767355860940,-151.0,0.0001464,2]
[400313842,1767355860949,-151.0,0.0001464,2]
[400313843,1767355860959,-151.0,0.0001464,2]
[400313844,1767355860968,-151.0,0.0001464,2]
[400313845,1767355860978,-200.0,0.0001464,2]
[400313846,1767355860988,-151.0,0.0001464,2]
[400313847,1767355861000,-151.0,0.0001464,2]
[400313848,1767355861010,-151.0,0.0001464,2]
[400313849,1767355861019,-151.0,0.0001464,2]
[400313850,1767355861028,-200.0,0.0001464,2]
[400313851,1767355861038,-151.0,0.0001464,2]
[400313852,1767355861048,-151.0,0.0001464,2]
[400313853,1767355861057,-151.0,0.0001464,2]
[400313854,1767355861067,-549.501,0.00014648,2]
[400313855,1767355861078,-785.7,0.00014761,2]
[400313856,1767355861088,-1216.04694365,0.00014821,2]
[400313857,1767355861097,-625.63564883,0.00014844,2]
[400313858,1767355861107,-250.0,0.00015059,2]
[400313859,1767355861117,-250.0,0.00015059,2]
[400313860,1767355861126,-250.0,0.00015059,2]
[400313861,1767355861135,-250.0,0.00015059,2]
[400313862,1767355861145,-250.0,0.00015059,2]
[400313863,1767355861154,-250.0,0.00015059,2]
[400313864,1767355861163,-250.0,0.00015059,2]
[400313865,1767355861247,-250.0,0.00015059,2]
[400313866,1767355861257,-250.0,0.00015059,2]
[400313867,1767355861266,-322.6107,0.00015059,2]
[400313868,1767355861275,-250.0,0.00015059,2]
[400313869,1767355861284,-250.0,0.00015059,2]
[400313870,1767355861294,-250.0,0.00015059,2]
[400313871,1767355861303,-250.0,0.00015059,2]
[400313872,1767355861312,-250.0,0.00015059,2]
[400313873,1767355861322,-250.0,0.00015059,2]
[400313874,1767355861331,-250.0,0.00015059,2]
[400313875,1767355861340,-250.0,0.00015059,2]
[400313876,1767355861349,-250.0,0.00015059,2]
[400313877,1767355861358,-250.0,0.00015059,2]
[400313878,1767355861369,-250.0,0.00015059,2]
[400313879,1767355861378,-250.0,0.00015059,2]
[400313880,1767355861389,-1216.04694365,0.00015081,2]
[400313881,1767355861398,-2272.95,0.00015166,2]
[400313882,1767355861408,-999.0,0.00015168,3]
[400313883,1767355861419,-200.0,0.00015188,2]
[400313884,1767355861429,-200.0,0.00015188,2]
[400313885,1767355861438,-9999.99,0.0001531,2]
[400313886,1767355861447,-1216.04694365,0.00015341,2]
[400313887,1767355861456,-10878.66157323,0.00015363,2]
[400313888,1767355861466,-235.29599382,0.00015462,2]
[400313889,1767355861476,-24024.5336258,0.00015463,2]
[400313890,1767355861485,-147686.0170204,0.00015463,2]
[400313891,1767355861494,-4750.8075174,0.00015463,2]
[400313892,1767355861504,-11644.7874983,0.00015463,2]
[400313893,1767355861513,-10878.66157319,0.00015534,2]
[400313894,1767355861523,-1216.04694365,0.00015601,2]
[400313895,1767355861532,-151.0,0.00015655,2]
[400313896,1767355861541,-151.0,0.00015655,2]
[400313897,1767355861551,-151.0,0.00015655,2]
[400313898,1767355861561,-151.0,0.00015655,2]
[400313899,1767355861570,-1842.0,0.00015663,2]
[400313900,1767355861579,-151.0,0.00015667,2]
[400313901,1767355861588,-151.0,0.00015667,2]
[400313902,1767355861598,-151.0,0.00015667,2]
[400313903,1767355861607,-151.0,0.00015667,2]
[400313904,1767355861617,-255.0,0.00015668,2]
[400313905,1767355861626,-10878.66157319,0.00015705,2]
[400313906,1767355861636,-200.0,0.00015736,2]
[400313907,1767355861645,-200.0,0.00015736,2]
[400313908,1767355861654,-1216.04694365,0.0001586,2]
[400313909,1767355861664,-2272.95,0.00015888,2]
[400313910,1767355861674,-2433.0,0.00015916,2]
[400313911,1767355861683,-565.0,0.00015916,2]
[400313912,1767355861692,-6544.0,0.00015916,2]
[400313913,1767355861702,-245.0,0.00015929,2]
[400313914,1767355861712,-25832.68970906,0.00015997,2]
[400313915,1767355861721,-187.61401706,0.00015999,2]
[400313916,1767355861730,-883.68477263,0.00016,2]
[400313917,1767355861741,-45153.03739443,0.00016,2]
[400313918,1767355861750,-1000.0,0.00016,2]
[400313919,1767355861760,-168.0,0.00016033,2]
[400313920,1767355861770,-150.0,0.0001606,2]
[400313921,1767355861779,-1328.0,0.0001606,2]
[400313922,1767355861788,-613.0,0.0001606,2]
[400313923,1767355861798,-1403.0,0.0001606,2]
[400313924,1767355861807,-5000.0,0.000161,2]
[400313925,1767355861817,-2975.82421633,0.00016109,2]
[400313926,1767355861826,-1216.04694365,0.0001612,2]
[400313927,1767355861836,-1021.8,0.0001619,2]
[400313928,1767355861845,-151.0,0.0001619,2]
[400313929,1767355861855,-200.2041015,0.0001622,2]
[400313930,1767355861864,-1000.0,0.00016236,2]
[400313931,1767355861874,-151.0,0.00016236,2]
[400313932,1767355861883,-151.0,0.00016236,2]
[400313933,1767355861892,-201.698147,0.00016236,2]
[400313934,1767355861902,-481.729128,0.00016236,2]
[400313935,1767355861911,-481.729128,0.00016236,2]
[400313936,1767355861920,-481.729128,0.00016236,2]
[400313937,1767355861929,-481.729128,0.00016236,2]
[400313938,1767355861938,-151.0,0.00016284,2]
[400313939,1767355861951,-151.0,0.00016284,2]
[400313940,1767355861960,-151.0,0.00016284,2]
[400313941,1767355861969,-151.0,0.00016284,2]
[400313942,1767355861978,-151.0,0.00016284,2]
[400313943,1767355861987,-304.479892,0.00016284,2]
[400313944,1767355861997,-304.479892,0.00016284,2]
[400313945,1767355862010,-304.479892,0.00016284,2]
[400313946,1767355862020,-304.479892,0.00016284,2]